Cogmind - Beta 16.1 @@@ ROGUE MODE // 2026.04.12 @ 23:03:50 Player: Soul Result: Self-destructed Performance ------------- Evolutions (1) 500 Regions Visited (3) 600 Robots Destroyed (25) 125 Value Destroyed (474) 474 Prototype IDs (1) 20 Alien Tech Used (0) 0 Bonus (0) 0 TOTAL SCORE: 1719 Bonus ------- None Cogmind --------- Core Integrity 280/400 Matter 72/300 Energy 265/265 System Corruption 0% Temperature Cool (0) Movement Flying (200) Ox2 Location -9/Mines Parts ------- > --- POWER (1) -------- Improved Ion Engine > --- PROPULSION (3) --- Flight Unit > --- UTILITY (3) ------ ECM Suite > --- WEAPON (2) ------- Mini Grenade Launcher > --- INVENTORY (5) ---- Cooled Ion Engine Advanced Weight Redist. System Light EM Pulse Cannon Peak State ------------ > --- POWER ------------ Improved Ion Engine > --- PROPULSION ------- Aluminum Leg Improved Hover Unit Flight Unit > --- UTILITY ---------- Hardened Light Armor Plating > --- WEAPON ----------- EM Pulse Cannon Mini Grenade Launcher > --- INVENTORY -------- Cooled Ion Engine Flight Unit Flight Unit Advanced Weight Redist. System Light EM Pulse Cannon [Rating: 14] Favorites ----------- Power Light Ion Engine Engine Light Ion Engine Propulsion Aluminum Leg Leg Aluminum Leg Hover Unit Improved Hover Unit Flight Unit Flight Unit Utility Hardened Light Armor Plating Device ECM Suite Protection Hardened Light Armor Plating Weapon EM Pulse Cannon Energy Gun EM Pulse Gun Energy Cannon EM Pulse Cannon Launcher Mini Grenade Launcher Build | -11 -10 -9 -9 ------- Run | Yrd Mat Mat Min Slots Evolved 2 | . . 2 . Power . | . . . . Propulsion 1 | . . 1 . Utility 1 | . . 1 . Weapon . | . . . . Parts Attached 17 | 5 . 12 . Power 3 | 1 . 2 . Engine 3 | 1 . 2 . Core . | . . . . Reactor . | . . . . Propulsion 6 | 2 . 4 . Treads . | . . . . Leg 2 | 2 . . . Wheel . | . . . . Hover 1 | . . 1 . Flight 3 | . . 3 . Utility 2 | . . 2 . Device 1 | . . 1 . Storage . | . . . . Processor . | . . . . Hackware . | . . . . Protection 1 | . . 1 . Artifact . | . . . . Weapon 6 | 2 . 4 . Energy Gun 3 | 2 . 1 . Energy Cannon 2 | . . 2 . Ballistic Gun . | . . . . Ballistic Cannon . | . . . . Launcher 1 | . . 1 . Special Weapon . | . . . . Impact Weapon . | . . . . Slashing Weapon . | . . . . Piercing Weapon . | . . . . Special Melee Weapon . | . . . . Unidentified Prototypes 1 | . . 1 . Parts Lost 5 | . . 1 4 Power . | . . . . Propulsion 3 | . . 1 2 Utility 1 | . . . 1 Weapon 1 | . . . 1 Highest Loss Streak 4 | . . 1 4 To Critical Strikes . | . . . . Average Backups 2 | 1 . 3 3 Power . | . . . 1 Propulsion . | . . . . Utility . | . . . 1 Weapon . | . . . 1 Tool/Special . | . . . . Unused Backups 5 | . . 2 3 Power 1 | . . . 1 Propulsion 2 | . . 2 . Utility 1 | . . . 1 Weapon 1 | . . . 1 Tool/Special . | . . . . Average Slot Usage (%) 68 | . 71 66 86 Engine 11 | . 14 10 11 Leg 19 | . 28 18 . Hover 1 | . . 1 . Flight 4 | . . 3 31 Protection 8 | . . 10 11 Energy Gun 11 | . 28 7 . Energy Cannon 8 | . . 11 11 Launcher 2 | . . 3 11 Peak Build Rating 14 | 5 5 14 13 Average Rating 8 | 2 5 10 11 On Entrance 5 | . 5 5 13 Avg Prop Armor Cover (%) 4 | . . 4 . Naked Turns . | . . . . Heaviest Build 24 | 7 7 24 21 Greatest Support 20 | 20 20 20 12 Greatest Overweight (x) 2 | . . 1 2 Average Overweight (x) . | . . . 1 Largest Inventory Capacity 5 | 5 5 5 5 Average Capacity 5 | 5 5 5 5 Most Carried 5 | 5 1 5 3 Average Carried 2 | 1 . 3 3 Final Capacity 5 | 5 5 5 5 Final Carried 3 | . 1 3 3 Class Distribution -------------------- 88% | Mutant 11% | Scavenger-Mutant Dominant Class ---------------- Mutant | -10/Materials Mutant | -9/Materials Scavenger-Mutant | -9/Mines Resources | -11 -10 -9 -9 ----------- Run | Yrd Mat Mat Min Matter Collected 287 | 214 33 40 . Remotely . | . . . . Salvage Created 515 | . 99 380 36 Parts 35 | . 4 31 . Haulers Intercepted . | . . . . Recyclers Shooed 1 | . . 1 . Parts Field Recycled . | . . . . Retrieved Matter . | . . . . Parts Self-Destructed . | . . . . Prevented . | . . . . Parts Restored . | . . . . Kills | -11 -10 -9 -9 ------- Run | Yrd Mat Mat Min Combat Hostiles Destroyed 25 | . 3 15 7 Guns 5 | . 3 2 . Cannons 1 | . . 1 . AOE 19 | . . 12 7 Classes Destroyed 8 | . 3 4 1 Worker 2 | . . 2 . Builder 1 | . . 1 . Recycler 1 | . . 1 . Watcher 3 | . 1 2 . Swarmer 11 | . 2 9 . Grunt 5 | . 1 4 . Sentry 2 | . . 2 . Assembled 7 | . . . 7 Best Kill Streak 12 | . 3 12 7 Combat Bots Only 9 | . 3 9 7 Max Kills in Single Turn 5 | . 1 5 2 Gunslinging . | . . . . Exploded 3 | . . 3 2 Melee . | . . . . Uniques/NPCs Destroyed . | . . . . Combat | -11 -10 -9 -9 -------- Run | Yrd Mat Mat Min Hostile Shots Fired 109 | . 15 67 27 Missed 52 | . 6 32 14 Hits 57 | . 9 35 13 Melee 2 | . . . 2 Projectile 55 | . 9 35 11 Damage Taken 818 | . 73 456 289 Core 120 | . . 68 52 Absorbed by Shields . | . . . . Core Remaining (%) 100 | 100 100 . . Volleys Fired 41 | . 8 27 6 Largest 2 | . 2 2 1 Hottest 126 | . 90 126 30 Shots Fired 66 | . 16 44 6 Gun 42 | . 16 26 . Cannon 8 | . . 8 . Launcher 16 | . . 10 6 Special . | . . . . Kinetic . | . . . . Thermal 21 | . 8 13 . Explosive 16 | . . 10 6 Electromagnetic 29 | . 8 21 . Robot Hit Streak 9 | . 7 9 2 Robot Miss Streak 3 | . 3 3 1 Penetration Max . | . . . . Secondary Targets . | . . . . Shots Hit Robots 38 | . 9 27 2 Core Hits 45 | . 6 28 11 Critical Kills . | . . . . Critical Parts Destroyed . | . . . . Critical Strikes 2 | . 1 1 . Burn 1 | . 1 . . Corrupt 1 | . . 1 . Melee Attacks . | . . . . Impact . | . . . . Slashing . | . . . . Piercing . | . . . . Sneak Attacks . | . . . . Combat Hostiles . | . . . . Follow-up Attacks . | . . . . Damage Inflicted 2148 | . 207 1522 419 Guns 345 | . 129 216 . Cannons 105 | . . 105 . Explosions 1698 | . 78 1201 419 Melee . | . . . . Ramming . | . . . . Kinetic . | . . . . Thermal 241 | . 130 111 . Explosive 1620 | . . 1201 419 Electromagnetic 287 | . 77 210 . Impact . | . . . . Slashing . | . . . . Piercing . | . . . . Highest Corruption . | . . . . Average Corruption . | . . . . Corruption Purged . | . . . . Corruption Blocked . | . . . . Overload Shots . | . . . . Overflow Damage 70 | . . 56 14 Projectiles . | . . . . Explosions 70 | . . 56 14 Melee . | . . . . Knockbacks . | . . . . Impact . | . . . . Kinetic . | . . . . Secondary . | . . . . Self-Inflicted Damage 92 | . . 13 79 Shots 3 | . . 1 2 Rammed . | . . . . Targets Rammed . | . . . . Kicked . | . . . . Crushed . | . . . . Highest Temperature 378 | . 162 378 2 Average Temperature 101 | . 70 114 1 Received Heat Transfer 135 | . 12 123 . Siege Activations . | . . . . Martial Activations . | . . . . Shielding Activations . | . . . . Robots Disrupted . | . . . . Combat Hostiles . | . . . . Robots Corrupted . | . . . . Combat Hostiles . | . . . . Parts Fried 2 | . 1 1 . Impact Corruptions . | . . . . Robots Melted . | . . . . Combat Hostiles . | . . . . Parts Melted 2 | . 1 1 . Heat Transferred 655 | . 322 333 . Parts Sabotaged . | . . . . Parts Stolen . | . . . . Parts Stripped . | . . . . Power Chain Reactions 1 | . 1 . . Alert | -11 -10 -9 -9 ------- Run | Yrd Mat Mat Min Maximum Alert Level 1 | . . 1 . Low Security (%) 84 | 100 100 77 100 Level 1 15 | . . 22 . Level 2 . | . . . . Level 3 . | . . . . Level 4 . | . . . . Level 5 . | . . . . High Security . | . . . . Max Security . | . . . . Peak Influence 328 | . 80 328 119 Initial 115 | . . 25 115 Average 65 | . 24 78 106 Influence Increases 659 | . 104 513 42 Destroy 0b10 Robot/C 360 | . 60 300 . Destroy 0b10 Robot/NC 35 | . 5 30 . Destroy Leader 76 | . 2 74 . Successful Hack 4 | . 4 . . Disable Machine 45 | . . 45 . Destroy Structure 94 | . 3 49 42 Lose Combat Pursuer 45 | . 30 15 . Influence Decreases 562 | . 44 277 241 Entered New Map 216 | . . 35 181 Time Decay 296 | . 44 232 20 Lost Part 50 | . . 10 40 Squads Dispatched 2 | . . 2 . Investigation 1 | . . 1 . Extermination . | . . . . Reinforcement 1 | . . 1 . Assault . | . . . . Garrison . | . . . . Intercept . | . . . . Searches Triggered . | . . . . Construction Impeded 1 | . . 1 . Haulers Reinforced . | . . . . Active Scanning Responses . | . . . . Cargo Convoy Interrupts . | . . . . Stealth | -11 -10 -9 -9 --------- Run | Yrd Mat Mat Min Distress Signals 2 | . 1 1 . Communications Jammed . | . . . . Distress Signals . | . . . . Times Spotted 50 | . 8 23 19 Peak Tracking Total 13 | . 5 7 13 Tactical Retreats 4 | . 1 1 2 Traps | -11 -10 -9 -9 ------- Run | Yrd Mat Mat Min Traps Triggered . | . . . . Indirectly . | . . . . Trap Hack Attempts . | . . . . Triggered . | . . . . Disarmed 6 | . 6 . . Reprogrammed . | . . . . Reused . | . . . . Traps Extracted . | . . . . Installed . | . . . . Triggered . | . . . . Machines | -11 -10 -9 -9 ---------- Run | Yrd Mat Mat Min Machines Disabled 3 | . . 3 . Max in Single Turn 1 | . . 1 . Machines Repaired . | . . . . Machines Dismantled . | . . . . Machines Sabotaged . | . . . . Overloaded Fab Kills . | . . . . Hacking | -11 -10 -9 -9 --------- Run | Yrd Mat Mat Min Machines Accessed 4 | . 2 2 . Terminals 3 | . 2 1 . Fabricators . | . . . . Repair Stations . | . . . . Recycling Units 1 | . . 1 . Scanalyzers . | . . . . Garrison Access . | . . . . Total Hacks 11 | . 6 5 . Successful 6 | . 4 2 . Failed 5 | . 2 3 . Catastrophic . | . . . . Database Lockouts . | . . . . Manual 8 | . 3 5 . Terminals 8 | . 6 2 . Fabricators . | . . . . Repair Stations . | . . . . Recycling Units 3 | . . 3 . Scanalyzers . | . . . . Garrison Access . | . . . . Terminal Hacks 4 | . 4 . . Alert Level 1 | . 1 . . Locate Traps 1 | . 1 . . Disarm Traps 1 | . 1 . . Dispatch Records 1 | . 1 . . Fabricator Hacks . | . . . . Repair Station Hacks . | . . . . Recycling Unit Hacks . | . . . . Scanalyzer . | . . . . Garrison Access Hacks . | . . . . Unauthorized Hacks 2 | . . 2 . Terminals 1 | . . 1 . Assimilate 1 | . . 1 . Fabricators . | . . . . Repair Stations . | . . . . Recycling Units 1 | . . 1 . Mask 1 | . . 1 . Scanalyzers . | . . . . Garrison Access . | . . . . Data Cores Recovered . | . . . . Used . | . . . . Hacking Detections 4 | . 2 2 . Full Trace Events 1 | . . 1 . Feedback Events . | . . . . Feedback Blocked . | . . . . Robot Schematics Acquired . | . . . . Robots Built . | . . . . Authchips . | . . . . Time . | . . . . Total Robot Build Rating . | . . . . Part Schematics Acquired . | . . . . Parts Built . | . . . . Authchips . | . . . . Time . | . . . . Total Part Build Rating . | . . . . Part Studies Acquired . | . . . . Parts Repaired . | . . . . Time . | . . . . Parts Recycled . | . . . . Recycled Matter . | . . . . Retrieved Matter . | . . . . Retrieved Components . | . . . . Parts Scanalyzed . | . . . . Part Schematics Acquired . | . . . . Parts Damaged . | . . . . Bothacking | -11 -10 -9 -9 ------------ Run | Yrd Mat Mat Min Used RIF Installer . | . . . . Robots Hacked . | . . . . Non-combat . | . . . . Combat . | . . . . Robot Hacks Applied . | . . . . Relay Couplers Released . | . . . . Fabnet Peak Effective % . | . . . . Robots Rewired . | . . . . Allies Hacked . | . . . . Hacks Repelled . | . . . . Allies | -11 -10 -9 -9 -------- Run | Yrd Mat Mat Min Total Allies . | . . . . Largest Group . | . . . . Highest-Rated Group . | . . . . Highest-Rated Ally . | . . . . Total Orders . | . . . . Ally Attacks . | . . . . Total Damage . | . . . . Kills . | . . . . Allies Corrupted . | . . . . Allies Melted . | . . . . Intel | -11 -10 -9 -9 ------- Run | Yrd Mat Mat Min Active Infowar (turns) 68 | . . 11 57 ECM 68 | . . 11 57 Robot Analysis Total . | . . . . Derelict Logs Recovered . | . . . . Drone Launches . | . . . . Drone Recoveries . | . . . . Exploration | -11 -10 -9 -9 ------------- Run | Yrd Mat Mat Min Turns Passed 918 | 40 196 625 57 Spaces Moved 567 | 37 143 350 37 Core 20 | 20 . . . Treads . | . . . . Legs 468 | 17 143 308 . Wheels . | . . . . Hover . | . . . . Flight 79 | . . 42 37 Fastest Speed 50 | 50 120 114 114 Average Speed 127 | 82 120 135 120 Slowest Speed 200 | 120 120 190 200 Overloaded Moves . | . . . . Propulsion Burnouts . | . . . . Robots Hopped . | . . . . Potential Cave-ins . | . . . . Cave-ins Triggered . | . . . . Exploration Rate (%) 16 | 3 25 29 9 Regions Visited 3 Branch Regions 1 Pre-discovered Areas . | . . . . Known Exits Taken . | . . . . Unknown Exits Taken 3 | 1 1 1 . Scrap Searched . | . . . . Spaces Dug . | . . . . Terrain Destroyed 108 | . 3 51 54 Melee . | . . . . Projectile . | . . . . AOE 108 | . 3 51 54 Terrain Rammed . | . . . . Walls Destroyed . | . . . . Machines Disabled . | . . . . Actions | -11 -10 -9 -9 --------- Run | Yrd Mat Mat Min Total 701 | 46 151 461 43 Wait 45 | . . 45 . Move 564 | 36 142 349 37 Hop . | . . . . Pick Up 22 | 5 1 16 . Fast Attach 1 | . . 1 . Attach 17 | 5 . 12 . Detach . | . . . . Swap . | . . . . Drop 11 | . . 11 . Fire 41 | . 8 27 6 Melee . | . . . . Ram . | . . . . Kick . | . . . . Crush . | . . . . Escape Stasis . | . . . . Rewire . | . . . . Trap . | . . . . Miscellaneous . | . . . . Route ------- -11/Scrapyard -10/Materials (discovered 2 exits: *Mat x2) -9/Materials -9/Mines History --------- Turn | Location | Event 9 | -11/Scrapyard | Discovered new exit (range 14) 41 | -11/Scrapyard | Entered Materials 113 | -10/Materials | Discovered new exit (range 7) 206 | -10/Materials | Discovered new exit (range 16) 237 | -10/Materials | Entered another Materials area 237 | -9/Materials | Evolved 2 slots: Propulsion x1, Utility x1 306 | -9/Materials | Build established: Mutant 757 | -9/Materials | Destroyed 9 combat bots 787 | -9/Materials | Discovered new exit (range 15) 862 | -9/Materials | Entered Mines 863 | -9/Mines | Assembled infested the area 868 | -9/Mines | Assisted by a Guerilla fighting off Assembled 919 | -9/Mines | Self-destructed Last Messages --------------- to get out of here! I've been tracking a group of Assembled to figure out where they're coming from, and they're closing on this area, come on!" 00880_ 9E-EVX(h): "I'll hold them off! Go on ahead or try to find another way!" 00884_ 9E-EVX(h) system corrupted by crushing effect. 00884_ HV Slug penetrates Wall. 00885_ 9E-EVX(h) system terminally corrupted. 00900_ as-89931 destroyed. 00903_ as-26327 destroyed. 00903_ Flight Unit destroyed. 00903_ Destroyed Flight Unit. 00905_ as-84803 destroyed. 00907_ as-32487 destroyed. 00907_ as-94817 destroyed. 00909_ as-23457 destroyed. 00910_ Hrd. Light Armor Plating destroyed. 00910_ EM Pulse Cannon destroyed. 00910_ Flight Unit destroyed. 00917_ as-11594 destroyed. Map ----- +----------------------------------------------------+ | ??????????????????????????????????????????? | | ??????????????????????????????????????????? | | ?????????????????????????????#????????????? | | ????????????????????????????? ????????????? | | ????????????????????????????? ????????????? | | ????????????????????????????? #???????????? | | ????????????????????????????? "???????????? | | ????????????????????????????? ##?????????? | | ????????????????????????????? #?????????? | | ????????????????????????? ??? #?????????? | | ???????????????????????? ?? #?????????? | | ????????????????????????a #### #?????????? | | ???????????????????????? #?????????? | | ???????????????????????# % = #?????????? | | ???????????????????##?## % #?????????? | | ??????????????????## ## a aa = #?????????? | | ??????????????????? a ###?????????? | | ??????????????????## a ##??????????? | | ??????????????????# a #??????????? | | ??????????????????# ##?????????? | | ??????????????????# # #?????????? | | ??????????????????# #??????????? | | ???????????????????# % #???????????? | | ???????????????????# ###???????????? | | ???????????????????# ##?????????????? | | ???????????????????# a@ #?????????????? | | ???????????????????# ##?????????????? | | ??????????????????# #?????????????? | | ?????????????????# #????????????? | | ?????????????????# ##????????????? | | ?????????????????## ## ##?????????????? | | ??????????????????##########??????????????? | | ??????????????????????????????????????????? | | ??????????????????????????????????????????? | | ??????????????????????????????????????????? | | ??????????????????????????????????????????? | | ??????????????????????????????????????????? | | ??????????????????????????????????????????? | | ??????????????????????????????????????????? | | ??????????????????????????????????????????? | | ??????????????????????????????????????????? | | ??????????????????????????????????????????? | | | | | | | | | | | | | | | | | +----------------------------------------------------+ Best States ------------- Heat Dissipation 28 Energy Generation 12 Energy Capacity 265 Matter Stores 300 Matter Capacity 300 Sight Range 16 Terrain Scan Density 10 ECM Strength 1 Armor Coverage 150 Evasion (%) 55 Item Schematics ----------------- None Robot Schematics ------------------ None Fabricated ------------ Nothing Repaired ---------- Nothing Studied --------- None Alien Tech Used ----------------- None Achievements -------------- Myspace Challenges ------------ None Game ------ Seed HybridDirtySubcomponent Manual? 0 Play Time 00:15:19 Cumulative 19.0 hours Start 2026.04.12 @ 22:49:27 End 2026.04.12 @ 23:03:50 Sessions 1 Manual Loads 0 Difficulty Rogue Special Mode None Game No. 40 Rogue 20 Adventurer 0 Explorer 20 Win Type - Total 0 Types 0/0/0/0/0/0/0/0/0/0 Lore% 5 Gallery% 17 Achievement% 12 Wizard Run 0 Options --------- Layout 1 ASCII 0 Keyboard 0 Movement Mouse Keybinds 0 Fullscreen 1 Font 16/SmallcapsGlow Map View 55x38 Zoom Use 0% Tactical HUD 1 Map Filters NONE Filters NONE Steam 1 RUN: a8a89199-6044-4238-a064-43832d912203